[Event "Sydney Open 2019"]
[Site "Sydney"]
[Date "2019.04.28"]
[Round "9.6"]
[White "Xie, George Wendi"]
[Black "Nakauchi, Gene"]
[Result "1-0"]
[WhiteElo "2359"]
[BlackElo "2221"]
[PlyCount "113"]
[EventDate "2019.04.24"]
[EventType "swiss"]
[EventCountry "AUS"]
[TimeControl "5400+30"]
[WhiteClock "0:02:04"]
[BlackClock "0:11:45"]

1. e4 {[%emt 1:27:44]} c5 {[%emt 1:30:06]} 2. c3 {[%emt 0:03:12]} d5 {[%emt 0:00:48]} 3. exd5 {[%emt 0:00:31]} Qxd5 {[%emt 0:00:28]} 4. d4 {[%emt 0:00:31]} Nf6 {[%emt 0:00:17]} 5. Nf3 {[%emt 0:00:28]} e6 {[%emt 0:00:00]} 6. Be2 {[%emt 0:00:31]} Be7 {[%emt 0:00:16]} 7. O-O {[%emt 0:00:29]} Nc6 {[%emt 0:01:06]} 8. c4 {[%emt 0:00:30]} Qf5 {[%emt 0:00:00]} 9. Nc3 {[%emt 0:00:00]} cxd4 {[%emt 0:00:44]} 10. Nb5 {[%emt 0:01:01]} O-O {[%emt 0:00:08]} 11. Nfxd4 {[%emt 0:00:06]} Nxd4 {[%emt 0:00:00]} 12. Nxd4 {[%emt 0:00:53]} Qa5 {[%emt 0:01:42]} 13. Qc2 {[%emt 0:00:00]} Bd7 {[%emt 0:00:00]} 14. a3 {[%emt 0:00:00]} Qb6 {[%emt 0:00:00]} 15. Nf3 {[%emt 0:00:00]} a5 {[%emt 0:00:00]} 16. Ne5 {[%emt 0:02:00]} Rac8 {[%emt 0:00:14]} 17. Nxd7 {[%emt 0:00:00]} Nxd7 {[%emt 0:02:35]} 18. Rb1 {[%emt 0:01:02]} Ne5 {[%emt 0:00:00]} 19. Be3 {[%emt 0:00:00]} Bc5 {[%emt 0:00:23]} 20. Bxc5 {[%emt 0:00:58]} Qxc5 {[%emt 0:00:54]} 21. b4 {[%emt 0:00:31]} axb4 {[%emt 0:00:40]} 22. axb4 {[%emt 0:00:31]} Qc7 {[%emt 0:00:00]} 23. Rfc1 {[%emt 0:00:03]} Rfd8 {[%emt 0:00:00]} 24. Qe4 {[%emt 0:00:48]} Nc6 {[%emt 0:00:00]} 25. b5 {[%emt 0:00:00]} Nd4 {[%emt 0:02:00]} 26. c5 {[%emt 0:01:07]} Qf4 {[%emt 0:00:00]} 27. Qd3 {[%emt 0:00:00]} e5 {[%emt 0:00:00]} 28. g3 {[%emt 0:00:00]} e4 {[%emt 0:00:00]} 29. Qc4 {[%emt 0:00:00]} Qd2 {[%emt 0:01:39]} 30. Bg4 {[%emt 0:02:00]} e3 {[%emt 0:00:18]} 31. Kh1 {[%emt 0:00:00]} Qxf2 {[%emt 0:00:00]} 32. Rf1 {[%emt 0:00:43]} Qc2 {[%emt 0:00:08]} 33. Qxf7+ {[%emt 0:00:00]} Kh8 {[%emt 0:00:00]} 34. Qf4 {[%emt 0:01:06]} Ra8 35. Rbd1 {[%emt 0:00:00]} Qxc5 36. Qxe3 {[%emt 0:00:00]} Qxb5 37. Bh3 {[%emt 0:00:00]} Qc5 38. Rf4 {[%emt 0:00:00]} Ne6 39. Rxd8+ {[%emt 0:00:00]} Rxd8 40. Qxe6 {[%emt 0:00:00]} b5 41. Bf1 {[%emt 0:00:00]} h6 42. Qb3 {[%emt 0:00:00]} Qc6+ 43. Qf3 {[%emt 0:00:00]} Qc5 44. Rf5 {[%emt 0:00:00]} Qc7 45. Bxb5 {[%emt 0:00:00]} Qc1+ 46. Bf1 {[%emt 0:00:00]} Qc8 47. Kg1 {[%emt 0:00:00]} Qb8 48. Rf7 {[%emt 0:00:00]} Qd6 49. Qf2 {[%emt 0:00:00]} Qb4 50. h3 {[%emt 0:00:00]} Kg8 51. Rf4 {[%emt 0:00:00]} Qd6 52. Kh2 {[%emt 0:00:00]} Qd1 53. Bg2 {[%emt 0:00:00]} Qd3 54. Qa2+ {[%emt 0:00:00]} Kh8 55. Qf7 {[%emt 0:00:00]} Qd6 56. Be4 {[%emt 0:00:00]} Rc8 57. Qf5 {[%emt 0:00:00]} 1-0